bitfinex-derivatives/quotes_ETHF0:USTF0_20250422
["timestamp","ask_amount","ask_price","bid_price","bid_amount"]
[1745363532159,1.13533,1761.1,1760.9,1.8671603]
[1745363532358,1.1354,1761.0,1760.8,1.91822345]
[1745363532554,5.544,1761.2,1760.9,0.73350296]
[1745363532868,1.13529,1761.1,1761.0,0.73350296]
[1745363533362,5.5574,1761.2,1761.0,0.73350296]
[1745363533560,6.69268,1761.2,1761.1,0.73350296]
[1745363533754,5.5574,1761.2,1761.1,0.73350296]
[1745363533958,1.14862,1761.2,1761.1,0.73413786]
[1745363534359,0.0134,1761.2,1761.1,5.07722786]
[1745363534565,0.0134,1761.2,1761.1,0.73413786]
[1745363534763,1.14862,1761.2,1761.1,0.73413786]
[1745363535561,1.13541,1760.9,1760.8,0.00852345]
[1745363536167,41.93541,1760.9,1760.8,0.00852345]
[1745363536663,1.13567,1760.5,1760.4,3.2078]
[1745363536861,40.8,1760.9,1760.6,1.13561]
[1745363537061,41.93547,1760.9,1760.7,2.90232]
[1745363537562,1.13548,1760.8,1760.7,1.7668]
[1745363537762,45.8,1760.9,1760.2,4.34362]
[1745363538062,40.80852345,1760.9,1760.6,0.00852345]
[1745363538260,41.94393345,1760.9,1760.8,3.2078]
[1745363538661,1.13554,1760.7,1760.6,0.00852345]
[1745363539672,9.34334,1760.7,1760.6,0.00852345]
[1745363539963,15.03534,1760.7,1760.6,0.00852345]
[1745363540469,40.80852345,1760.9,1760.6,0.00852345]
[1745363540668,40.80852345,1760.9,1760.7,3.2078]
[1745363540860,40.80852345,1760.9,1760.6,0.00852345]
[1745363540861,1.13554,1760.7,1760.6,0.00852345]
[1745363541261,2.83915,1760.6,1760.0,3.2078]
[1745363541564,1.13593,1760.1,1760.0,5.0504]
[1745363542072,1.13593,1760.1,1760.0,3.2078]
[1745363542462,1.13599,1760.0,1759.9,0.00852345]
[1745363542658,1.13599,1760.0,1759.8,5.0504]
[1745363542659,40.8,1760.1,1759.8,3.2078]
[1745363542865,40.8,1760.1,1760.0,3.2078]
[1745363543059,40.8,1760.1,1760.0,1.13599]
[1745363543268,40.8,1760.1,1760.0,2.97859]
[1745363544158,40.8,1760.1,1760.0,7.97859]
[1745363544562,40.8,1760.1,1760.0,6.8426]
[1745363544762,40.8,1760.1,1760.0,7.97859]
[1745363545160,10.9652,1761.1,1760.2,2.83967]
[1745363545375,0.0134,1761.2,1760.8,3.2078]
[1745363545570,40.8,1761.1,1761.0,4.34315]
[1745363546064,0.0134,1761.2,1761.1,1.13529]
[1745363546264,0.02192345,1761.2,1761.1,2.90649]
[1745363546572,40.82192345,1761.2,1761.1,7.90649]
[1745363546769,0.02192345,1761.2,1761.1,7.90649]
[1745363546986,1.7335,1761.6,1761.4,1.13506]
[1745363547270,4.34266,1761.8,1761.5,1.13503]
[1745363547471,1.13486,1761.8,1761.5,2.96018]
[1745363547871,40.8,1761.7,1761.5,2.96018]
[1745363548074,0.00852345,1761.8,1761.5,1.8252]
[1745363548375,1.7566,1763.1,1762.2,2.83645]
[1745363548564,1.13413,1762.9,1762.8,3.2078]
[1745363548872,40.8,1763.0,1762.8,3.2078]
[1745363549171,1.13437,1762.6,1762.5,3.2078]
[1745363549368,1.1343,1762.7,1762.5,3.2078]
[1745363549574,1.13432,1762.6,1762.5,3.2078]
[1745363549962,1.13438,1762.5,1762.4,0.00852345]
[1745363550166,2.97598,1762.5,1762.4,0.00852345]
[1745363550372,7.97598,1762.5,1762.4,0.00852345]
[1745363550876,2.97598,1762.5,1762.4,0.00852345]
[1745363551276,7.97598,1762.5,1762.4,0.00852345]
[1745363551481,8.66698,1762.5,1762.4,0.00852345]
[1745363551675,13.66698,1762.5,1762.4,0.00852345]
[1745363552677,5.67226,1762.4,1761.5,3.2078]
[1745363552864,1.91821214,1762.3,1761.7,3.2078]
[1745363553065,1.91821214,1762.3,1761.9,3.2078]
[1745363553066,1.13471,1762.0,1761.9,3.2078]
[1745363553570,1.13496,1761.6,1761.5,3.2211]
[1745363553971,1.13496,1761.6,1761.5,0.0133]
[1745363554169,1.13503,1761.5,1761.4,0.00852345]
[1745363554379,2.85273,1761.5,1761.4,0.00852345]
[1745363554878,2.85273,1761.5,1761.4,3.21632345]
[1745363555076,0.00852345,1762.1,1761.4,8.21632345]
[1745363555267,1.1349,1761.7,1761.6,3.2078]
[1745363555466,0.00852345,1762.1,1761.6,3.2078]
[1745363555676,1.72622345,1762.1,1761.7,1.7461]
[1745363556077,1.13483,1761.8,1761.7,1.7461]
[1745363556583,1.14318345,1762.1,1761.7,6.7461]
[1745363556783,1.13471,1762.0,1761.9,3.2078]
[1745363556985,1.14320345,1762.1,1761.9,3.2078]
[1745363557184,1.14316345,1762.1,1762.0,1.767]
[1745363557482,5.69,1762.7,1762.2,1.13452]
[1745363557784,1.13447,1762.4,1762.3,4.9748]
[1745363558580,40.8,1762.6,1762.3,4.9748]
[1745363558785,41.93436,1762.6,1762.5,3.2078]
[1745363559086,41.94288345,1762.6,1762.5,3.2078]
[1745363559286,1.13438,1762.5,1762.4,4.9748]
[1745363559983,1.13438,1762.5,1762.4,3.2078]
[1745363560289,1.13489,1761.8,1761.6,3.2078]
[1745363560485,2.83661,1762.1,1761.7,1.7191]
[1745363560790,2.83661,1762.1,1761.6,3.2078]
[1745363560791,1.1349,1761.7,1761.6,3.2078]
[1745363561491,1.1349,1761.7,1761.6,4.9269]
[1745363561679,6.1349,1761.7,1761.6,3.2078]
[1745363561885,1.13496,1761.6,1761.5,0.00852345]
[1745363562189,2.88446,1761.6,1761.5,0.00852345]
[1745363562384,2.88446,1761.6,1761.5,3.21632345]
[1745363562579,2.88446,1761.6,1761.5,0.00852345]
[1745363562790,1.13496,1761.6,1761.5,3.21632345]
[1745363562993,1.13492,1761.7,1761.5,3.21632345]
[1745363563190,1.13492,1761.7,1761.6,1.7437]
[1745363563592,1.7495,1762.0,1761.6,2.87865]
[1745363563793,1.1349,1761.7,1761.6,1.7437]
[1745363564291,1.13496,1761.6,1761.5,3.21632345]
[1745363564488,2.88446,1761.6,1761.5,3.21632345]
[1745363564693,2.88446,1761.6,1761.5,0.00852345]
[1745363564893,1.13516,1761.3,1761.2,3.2078]
[1745363565487,1.13522,1761.2,1761.1,1.7437]
[1745363566095,41.93522,1761.2,1761.1,1.7437]
[1745363566393,40.8,1761.2,1761.1,1.7437]
[1745363566593,1.13529,1761.1,1761.0,3.21632345]
[1745363566795,41.93527,1761.2,1761.0,6.21487345]
[1745363567388,1.13529,1761.1,1761.0,5.07952345]
[1745363567590,1.13529,1761.1,1761.0,3.21632345]
[1745363567789,2.91459,1761.1,1761.0,3.21632345]
[1745363568186,2.91459,1761.1,1761.0,0.00852345]
[1745363568383,2.91459,1761.1,1761.0,3.21632345]
[1745363568592,1.13548,1760.8,1760.7,3.2078]
[1745363568897,1.13567,1760.5,1760.4,3.2078]
[1745363569196,2.83874,1760.8,1760.2,6.22714]
[1745363569197,1.13577,1760.4,1760.2,6.22714]
[1745363569396,1.1358,1760.3,1760.2,5.0913]
[1745363569789,7.74612,1760.7,1760.2,5.0913]
[1745363569988,40.8,1760.3,1760.2,6.22717]
[1745363570489,1.13565,1760.6,1760.4,1.13572]
[1745363570689,1.13565,1760.6,1760.5,5.0913]
[1745363571091,1.13561,1760.6,1760.5,3.2078]
[1745363571286,1.6994,1760.8,1760.5,3.2078]
[1745363571485,40.8,1760.7,1760.6,2.98331]
[1745363571689,41.93554,1760.7,1760.6,3.2078]
[1745363571994,46.93554,1760.7,1760.6,3.2078]
[1745363572192,41.93554,1760.7,1760.6,3.2078]
[1745363572392,40.8,1760.7,1760.6,4.34341]
[1745363575094,41.93554,1760.7,1760.6,3.2078]
[1745363575792,2.83906,1760.6,1760.2,1.13585]
[1745363575997,1.951,1760.6,1760.2,1.8795]
[1745363576392,1.13567,1760.5,1760.4,1.1357]
[1745363576588,3.08666,1760.6,1760.2,5.0873]
[1745363576792,3.08661,1760.6,1760.4,1.13569]
[1745363576998,3.08661,1760.6,1760.2,4.34365]
[1745363576999,1.1358,1760.3,1760.2,4.34365]
[1745363577191,1.1358,1760.3,1760.2,6.29285]
[1745363577491,1.13577,1760.4,1760.3,1.1358]
[1745363577687,1.13577,1760.4,1760.2,6.29282]
[1745363578398,1.951,1760.6,1760.2,6.29285]
[1745363578599,1.13578,1760.4,1760.2,5.157]
[1745363578799,1.1358,1760.3,1760.2,5.157]
[1745363579000,1.13578,1760.4,1760.2,5.157]
[1745363579190,44.0078,1760.7,1760.2,5.157]
[1745363579391,40.8,1760.7,1760.6,1.13561]
[1745363579597,40.8,1760.7,1760.6,4.34341]
[1745363579992,41.93554,1760.7,1760.6,4.34341]
[1745363580395,41.93554,1760.7,1760.6,3.2078]
[1745363580597,41.93554,1760.7,1760.6,4.34341]
[1745363580999,41.93554,1760.7,1760.6,3.2078]
[1745363582001,41.93554,1760.7,1760.6,4.34341]
[1745363582202,41.93554,1760.7,1760.6,3.2078]
[1745363582798,41.93554,1760.7,1760.6,4.34341]
[1745363582999,40.8,1760.7,1760.5,1.9492]
[1745363583207,1.865,1760.6,1760.4,1.13574]
[1745363583404,3.00065,1760.6,1760.5,1.8229]
[1745363583604,3.00065,1760.6,1760.5,3.2078]
[1745363584707,40.8,1760.7,1760.6,1.13561]
[1745363584900,40.8,1760.7,1760.6,2.95851]
[1745363585602,41.93554,1760.7,1760.6,1.8229]
[1745363586001,51.84681,1760.7,1760.3,3.2078]
[1745363586197,1.13574,1760.4,1760.3,3.2078]
[1745363586397,1.13574,1760.4,1760.3,4.3436]
[1745363587504,1.13574,1760.4,1760.3,3.2078]
[1745363588204,1.1358,1760.3,1760.2,3.14011]
[1745363588806,1.8431,1760.6,1760.3,1.13575]
[1745363589005,1.13567,1760.5,1760.4,2.0043]
[1745363589302,1.13587,1760.2,1760.1,3.21632345]
[1745363589807,0.00852345,1760.3,1760.2,1.13587]
[1745363590304,1.14432345,1760.3,1760.2,1.13587]
[1745363590504,0.00852345,1760.3,1760.2,1.13587]
[1745363591393,42.7853,1760.7,1760.2,1.13587]
[1745363591394,43.77789,1760.7,1760.3,2.83949]
[1745363591594,43.77789,1760.7,1760.6,4.34341]
[1745363591799,43.77789,1760.7,1760.5,1.13563]
[1745363591997,1.8621,1761.1,1760.6,3.2078]
[1745363592310,8.74783,1761.4,1760.3,5.728]
[1745363592311,2.83806,1761.2,1760.8,3.2078]
[1745363592496,1.13541,1760.9,1760.8,3.2078]
[1745363592700,1.13558,1760.7,1760.6,3.2078]
[1745363592903,3.02091,1760.8,1760.6,4.34335]
[1745363593307,1.13551,1760.8,1760.6,4.34335]
[1745363593711,1.8854,1761.0,1760.8,1.13547]
[1745363593901,40.8,1761.1,1760.8,3.2078]
[1745363594103,1.13541,1760.9,1760.8,4.34326]
[1745363594303,42.6854,1761.1,1760.9,1.13541]
[1745363594504,42.6854,1761.1,1760.8,4.34322]
[1745363595004,1.13554,1760.7,1760.6,3.2078]
[1745363595909,1.13554,1760.7,1760.6,4.34341]
[1745363596112,4.84246,1760.9,1760.6,3.2078]
[1745363596310,1.13554,1760.7,1760.6,3.2078]
[1745363597909,1.13567,1760.5,1760.4,3.2078]
[1745363598110,1.13587,1760.2,1760.1,0.00852345]
[1745363598616,1.13587,1760.2,1760.1,1.14445345]
[1745363598818,41.93587,1760.2,1760.1,1.14445345]
[1745363599214,40.8,1760.2,1760.1,1.14445345]
[1745363599628,41.93587,1760.2,1760.1,0.00852345]
[1745363600520,46.93587,1760.2,1760.1,0.00852345]
[1745363601125,1.13612,1759.8,1759.7,3.2078]
[1745363601327,1.13611,1759.9,1759.7,3.2078]
[1745363601530,3.7303,1760.1,1759.7,4.34397]
[1745363601731,1.13611,1759.9,1759.7,4.34397]
[1745363601930,3.7303,1760.1,1759.7,4.34397]
[1745363602128,1.13612,1759.8,1759.7,3.2078]
[1745363602324,1.13612,1759.8,1759.7,3.21632345]
[1745363602631,1.13612,1759.8,1759.7,0.00852345]
[1745363602926,1.8512,1759.9,1759.7,0.00852345]
[1745363603131,2.98726,1759.9,1759.8,1.13612]
[1745363603323,2.98726,1759.9,1759.8,3.15482]
[1745363603520,1.8512,1759.9,1759.8,3.15482]
[1745363603928,1.13606,1759.9,1759.8,2.0187]
[1745363604124,1.8512,1760.0,1759.8,3.15482]
[1745363604524,0.00852345,1760.1,1759.9,3.2078]
[1745363604724,1.85792345,1760.1,1759.9,5.0883]
[1745363605025,1.13599,1760.0,1759.9,6.22432]
[1745363605332,1.85792345,1760.1,1759.9,6.22432]
[1745363605333,2.99390345,1760.1,1760.0,1.13599]
[1745363605527,1.85792345,1760.1,1760.0,1.8805]
[1745363605724,2.99385345,1760.1,1760.0,1.8805]
[1745363606033,2.99385345,1760.1,1760.0,3.01649]
[1745363606420,0.00852345,1760.1,1760.0,3.01649]
[1745363606820,40.8,1760.2,1760.1,1.13593]
[1745363607126,40.8,1760.2,1760.1,4.34373]
[1745363608431,0.00852345,1760.3,1760.1,4.34373]
[1745363608432,0.00852345,1760.3,1760.2,1.13587]
[1745363608732,0.00852345,1760.3,1760.2,3.12687]
[1745363609031,40.80852345,1760.3,1760.2,3.12687]
[1745363610235,1.13587,1760.2,1760.1,1.13591]
[1745363610422,2.99627,1760.2,1760.0,3.01744]
[1745363610820,1.13593,1760.1,1760.0,1.8815]
[1745363611033,2.99629,1760.2,1760.0,1.8815]
[1745363611326,1.13593,1760.1,1760.0,1.8815]
[1745363611535,1.13599,1760.0,1759.9,3.2078]
[1745363611836,1.13612,1759.8,1759.7,1.14466345]
[1745363612022,1.8604,1760.1,1759.7,1.89002345]
[1745363612229,1.8604,1760.1,1759.9,1.13604]
[1745363612532,2.99637,1760.1,1760.0,1.8815]
[1745363613127,1.13606,1759.9,1759.8,3.2078]
[1745363614335,4.70025,1760.1,1759.7,1.14468345]
[1745363614731,1.13612,1759.8,1759.7,1.96592345]
[1745363615633,40.80852345,1760.3,1759.8,2.84032]
[1745363615939,1.13592,1760.2,1760.0,3.2078]
[1745363616134,1.13593,1760.1,1760.0,3.2078]
[1745363617635,1.13599,1760.0,1759.9,1.9574]
[1745363617839,1.13606,1759.9,1759.8,3.2078]
[1745363618138,3.09614,1760.0,1759.9,1.13606]
[1745363618438,3.09614,1760.0,1759.8,6.25048]
[1745363618839,1.13606,1759.9,1759.8,5.1144]
[1745363620641,1.13606,1759.9,1759.8,6.25052]
[1745363621838,1.13606,1759.9,1759.8,5.1144]
[1745363622041,1.13612,1759.8,1759.7,0.00852345]
[1745363622340,3.11782,1759.8,1759.7,0.00852345]
[1745363628443,3.11782,1759.8,1759.7,1.93032345]
[1745363629244,3.11782,1759.8,1759.7,0.00852345]
[1745363630845,3.11782,1759.8,1759.7,0.76735419]
[1745363631045,1.13632,1759.5,1759.4,3.2078]
[1745363631438,3.118,1759.6,1759.5,1.13632]
[1745363631638,43.918,1759.6,1759.5,2.0423]
[1745363632341,1.13632,1759.5,1759.4,4.35270345]
[1745363632949,2.89192,1759.5,1759.4,4.35270345]
[1745363633441,1.7556,1759.5,1759.4,4.35270345]
[1745363633647,2.89192,1759.5,1759.4,4.35270345]
[1745363634449,2.89192,1759.5,1759.4,3.21632345]
[1745363634745,2.89192,1759.5,1759.4,4.35270345]
[1745363634950,2.89192,1759.5,1759.4,6.16530345]
[1745363635643,40.8,1759.6,1759.4,6.16530345]
[1745363635843,43.7006,1759.6,1759.5,1.13632]
[1745363636153,43.7006,1759.6,1759.5,2.94892]
[1745363636550,40.8,1759.6,1759.5,2.94892]
[1745363636740,41.93625,1759.6,1759.5,2.94892]
[1745363637749,40.8,1759.6,1759.5,2.94892]
[1745363638048,1.13612,1759.8,1759.7,1.13613]
[1745363638251,1.13619,1759.7,1759.6,4.34403]
[1745363638450,41.93619,1759.7,1759.6,4.34403]
[1745363640452,41.93619,1759.7,1759.6,3.2078]
[1745363640767,1.13625,1759.6,1759.5,1.8126]
[1745363640954,2.85755,1759.6,1759.5,1.8126]
[1745363641555,1.13632,1759.5,1759.4,3.21632345]
[1745363641757,2.85762,1759.5,1759.4,3.21632345]
[1745363642651,7.85762,1759.5,1759.4,0.00852345]
[1745363642951,2.84101,1759.4,1758.9,3.2078]
[1745363643158,2.84101,1759.4,1759.0,0.74885313]
[1745363643159,1.7213,1759.3,1759.0,0.74885313]
[1745363643349,1.1366,1759.1,1759.0,1.7802]
[1745363643550,1.1366,1759.1,1759.0,2.52891889]
[1745363644857,1.1366,1759.1,1759.0,1.7802]
[1745363645058,2.8895,1759.1,1759.0,1.7802]
[1745363645755,1.1366,1759.1,1758.9,3.21632345]
[1745363646060,1.1366,1759.1,1759.0,1.7836]
[1745363646663,0.00852345,1759.2,1759.1,1.13658]
[1745363646856,1.14503345,1759.2,1759.1,1.13658]
[1745363647058,1.13658,1759.1,1759.0,2.92019]
[1745363647454,1.14508345,1759.2,1759.0,2.92019]
[1745363647659,1.14508345,1759.2,1759.1,1.13658]
[1745363649063,1.13658,1759.1,1759.0,2.92022]
[1745363649263,1.13658,1759.1,1759.0,2.92024]
[1745363649464,1.14508345,1759.2,1759.0,2.92024]
[1745363649762,1.13658,1759.1,1759.0,1.7836]
[1745363650262,1.13664,1759.0,1758.9,3.21632345]
[1745363650462,1.13664,1759.0,1758.9,4.89382345]
[1745363650659,1.13664,1759.0,1758.9,3.21632345]
[1745363650859,1.13664,1759.0,1758.9,0.00852345]
[1745363651562,3.21632345,1759.2,1758.9,0.00852345]
[1745363651864,2.84003,1760.0,1759.2,2.84128]
[1745363652164,40.8,1759.9,1759.6,4.34401]
[1745363652361,1.13616,1759.8,1759.7,1.6775]
[1745363652862,1.13616,1759.8,1759.7,2.49497962]
[1745363653966,0.00852345,1759.9,1759.8,1.13612]
[1745363654263,1.14462345,1759.9,1759.8,0.81747962]
[1745363654562,41.94462345,1759.9,1759.8,0.81747962]
[1745363655463,1.13612,1759.8,1759.7,1.6775]
[1745363655663,1.13612,1759.8,1759.7,2.48638516]
[1745363655959,1.13612,1759.8,1759.7,2.48641327]
[1745363656357,1.13612,1759.8,1759.7,3.62260327]
[1745363656661,1.13612,1759.8,1759.7,2.48641327]
[1745363657762,2.84312,1759.8,1759.7,2.48641327]
[1745363658264,2.84312,1759.8,1759.7,2.48629262]
[1745363658661,40.80852345,1759.9,1759.7,2.48629262]
[1745363658866,40.80852345,1759.9,1759.8,0.80879262]
[1745363658867,41.94461345,1759.9,1759.8,0.80879262]
[1745363659266,43.73351345,1759.9,1759.8,0.80879262]
[1745363660068,1.13612,1759.8,1759.7,2.89809]
[1745363660368,1.13612,1759.8,1759.7,3.70692234]
[1745363660869,1.13612,1759.8,1759.7,2.57073234]
[1745363661059,1.13612,1759.8,1759.7,3.70692234]
[1745363661370,1.13612,1759.8,1759.7,2.57073234]
[1745363661769,1.13612,1759.8,1759.7,2.57055492]
[1745363662573,1.13612,1759.8,1759.7,3.70674492]
[1745363662974,41.94462345,1759.9,1759.8,1.13612]
[1745363663271,41.94462345,1759.9,1759.8,5.15257492]
[1745363663962,41.94462345,1759.9,1759.8,0.80865492]
[1745363664264,41.94462345,1759.9,1759.8,1.94477492]
[1745363664467,41.94462345,1759.9,1759.8,0.80865492]
[1745363665673,40.80852345,1759.9,1759.8,5.15257492]
[1745363667167,41.94458345,1759.9,1759.8,5.15257492]
[1745363668470,41.94458345,1759.9,1759.8,4.01645492]
[1745363669072,41.94458345,1759.9,1759.8,5.15257492]
[1745363669371,41.94458345,1759.9,1759.8,4.01559855]
[1745363669972,41.94458345,1759.9,1759.8,5.15171855]
[1745363670277,41.94458345,1759.9,1759.8,4.01559855]
[1745363670782,41.94458345,1759.9,1759.8,5.15171855]
[1745363671578,41.94458345,1759.9,1759.8,4.01559855]
[1745363672778,41.94458345,1759.9,1759.8,0.80779855]
[1745363672972,41.94458345,1759.9,1759.6,3.2078]
[1745363672973,1.13619,1759.7,1759.6,3.2078]
[1745363675873,2.87129,1759.7,1759.6,3.2078]
[1745363676175,1.13632,1759.5,1759.4,3.2078]
[1745363677080,2.87142,1759.5,1759.4,3.2078]
[1745363677871,1.13631,1759.6,1759.5,1.1363]
[1745363678067,1.13631,1759.6,1759.5,1.789]
[1745363678281,1.13631,1759.6,1759.5,2.92532]
[1745363678578,1.13625,1759.7,1759.6,1.13624]
[1745363678779,1.1362,1759.7,1759.6,1.13621]
[1745363679079,1.13625,1759.6,1759.5,4.68227]
[1745363679379,1.13617,1759.8,1759.7,1.13617]
[1745363679676,1.13617,1759.8,1759.7,4.34397]
[1745363679878,1.13617,1759.8,1759.7,3.2078]
[1745363680479,42.46732345,1759.9,1759.8,1.13612]
[1745363680480,40.80852345,1759.9,1759.8,1.13612]
[1745363680680,9.3921,1760.3,1760.0,1.13596]
[1745363680871,1.13592,1760.2,1760.1,3.2078]
[1745363681077,41.93592,1760.2,1760.1,3.2078]
[1745363681275,43.67812,1760.2,1760.1,3.2078]
[1745363681481,43.67812,1760.2,1760.1,4.9022]
[1745363682878,43.67812,1760.2,1760.1,6.03813]
[1745363683184,41.93592,1760.2,1760.1,4.9022]
[1745363683475,40.8,1760.2,1760.1,6.03813]
[1745363683869,41.93587,1760.2,1760.1,6.682]
[1745363684074,40.8,1760.2,1760.1,7.81793]
[1745363684279,41.93587,1760.2,1760.1,7.81793]
[1745363684481,41.93587,1760.2,1760.1,6.682]
[1745363684983,41.93587,1760.2,1760.1,7.46530882]
[1745363686184,41.93587,1760.2,1760.1,8.60123882]
[1745363686484,41.93587,1760.2,1760.1,7.46512501]
[1745363687971,41.93587,1760.2,1760.1,8.60105501]
[1745363688376,40.8,1760.2,1760.1,8.60105501]
[1745363688685,41.93587,1760.2,1760.1,8.60105501]
[1745363689378,41.93587,1760.2,1760.1,5.68532501]
[1745363689578,43.71517,1760.2,1760.1,5.68532501]
[1745363692188,43.71517,1760.2,1760.1,0.78312501]
[1745363692481,47.14337,1760.2,1760.1,0.78312501]
[1745363692683,51.0075,1760.2,1759.9,3.2078]
[1745363692986,1.13625,1759.6,1759.5,1.7112]
[1745363693375,1.13638,1759.4,1759.3,1.13643]
[1745363693582,41.93638,1759.4,1759.3,2.84763]
[1745363693788,41.93638,1759.4,1759.3,1.7112]
[1745363694888,40.8,1759.4,1759.3,2.84765]
[1745363695086,40.8,1759.4,1759.3,7.84765]
[1745363697583,1.13604,1760.0,1759.5,2.84068]
[1745363697784,5.91,1760.1,1759.8,3.2078]
[1745363697785,1.13596,1760.1,1759.8,3.2078]
[1745363697988,2.85991,1760.2,1759.9,1.7227]
[1745363698186,40.8,1760.1,1760.0,1.13599]
[1745363699091,41.93593,1760.1,1760.0,1.13599]
[1745363699480,0.00852345,1760.3,1760.2,1.13587]
[1745363699684,1.13589,1760.2,1760.0,6.11335]
[1745363699883,1.13589,1760.2,1760.1,1.6507]
[1745363700087,43.66259,1760.2,1760.1,1.6507]
[1745363701489,43.66259,1760.2,1760.0,6.11337]
[1745363701490,1.13593,1760.1,1760.0,3.2078]
[1745363701690,2.94703,1760.1,1760.0,3.2078]
[1745363702180,2.94707,1760.1,1759.8,3.5496]
[1745363702385,41.9359,1760.2,1760.1,1.13593]
[1745363702590,40.8,1760.2,1760.1,4.34373]
[1745363702890,0.00852345,1760.3,1760.2,1.13587]
[1745363703086,0.00852345,1760.3,1760.2,4.62287]
[1745363703279,0.00852345,1760.3,1760.2,9.62287]
[1745363703685,3.2078,1761.3,1760.3,2.83949]
[1745363703885,4.34299,1761.3,1761.1,1.13525]
[1745363704094,4.34299,1761.3,1761.2,1.8197]
[1745363704395,1.13519,1761.3,1761.2,1.8197]
[1745363704583,40.8,1761.3,1761.2,1.8197]
[1745363704786,40.8,1761.3,1761.2,2.57489376]
[1745363704997,40.8,1761.3,1761.2,2.57490616]
[1745363705191,40.8,1761.3,1761.2,3.71012697]
[1745363705490,40.8,1761.3,1761.2,2.95492]
[1745363705692,40.8,1761.3,1761.2,3.70899635]
[1745363705887,0.00852345,1761.4,1761.3,1.13516]
[1745363706088,0.00852345,1761.4,1761.3,7.30965253]
[1745363706287,3.2078,1762.1,1761.4,2.83759]
[1745363706486,4.34246,1762.1,1761.8,1.1348]
[1745363706686,1.7476,1762.2,1762.0,1.13468]
[1745363706889,1.7476,1762.2,1762.1,2.55012818]
[1745363707094,1.7476,1762.2,1762.1,2.55002088]
[1745363707290,4.8743,1762.4,1762.1,1.7965]
[1745363707291,3.2078,1762.4,1762.1,1.7965]
[1745363707484,3.2078,1762.4,1762.2,2.54984679]
[1745363707683,2.83629,1762.3,1761.7,3.2078]
[1745363707886,1.13486,1761.8,1761.6,1.7967]
[1745363708090,1.7907,1761.7,1761.6,1.7967]
[1745363708296,1.7907,1761.7,1761.6,2.93166]
[1745363708297,40.8,1761.7,1761.6,2.93166]
[1745363708594,40.8,1761.7,1761.6,6.13946]
[1745363709091,40.8,1761.7,1761.6,5.0045]
[1745363709293,40.8,1761.7,1761.6,1.7967]
[1745363709696,41.9349,1761.7,1761.6,1.7967]
[1745363709898,1.13496,1761.6,1761.5,0.00852345]
[1745363710195,8.4516,1761.6,1761.1,5.0045]
[1745363710390,1.13516,1761.3,1761.2,1.7967]
[1745363710592,8.4516,1761.6,1760.6,9.7949]
[1745363710593,1.13542,1760.9,1760.6,9.7949]
[1745363710783,1.13539,1761.0,1760.7,1.6464]
[1745363710990,1.694,1760.9,1760.7,2.78191]
[1745363711187,1.694,1760.9,1760.7,1.65492345]
[1745363711384,2.82944,1760.9,1760.7,1.65492345]
[1745363711589,2.82942,1760.9,1760.7,2.79045345]
[1745363711789,2.82942,1760.9,1760.7,1.65492345]
[1745363711987,2.82942,1760.9,1760.8,3.2078]
[1745363712195,2.82943,1760.9,1760.7,0.00852345]
[1745363712397,2.82943,1760.9,1760.7,1.14405345]
[1745363712595,2.82943,1760.9,1760.7,2.79045345]
[1745363712784,1.694,1760.9,1760.7,2.79045345]
[1745363713491,2.82944,1760.9,1760.7,1.65492345]
[1745363713897,40.8,1760.8,1760.7,1.65492345]
[1745363714394,40.8,1760.8,1760.7,2.79046345]
[1745363714699,42.5131,1760.8,1760.7,1.65492345]
[1745363714990,42.5131,1760.8,1760.7,2.79046345]
[1745363715497,42.5131,1760.8,1760.7,1.65492345]
[1745363715692,42.5131,1760.8,1760.7,2.79046345]
[1745363715900,42.5131,1760.8,1760.7,1.65492345]
[1745363716390,40.8,1760.8,1760.7,2.79046345]
[1745363716892,1.13511,1761.4,1761.2,1.1352]
[1745363717091,1.13511,1761.4,1761.0,4.9164]
[1745363717297,42.6036,1761.3,1761.0,6.0517]
[1745363717490,42.6036,1761.3,1760.8,8.1278]
[1745363717491,1.13529,1761.1,1760.8,8.1278]
[1745363717797,1.13529,1761.1,1760.9,2.84398]
[1745363717989,0.00852345,1761.1,1760.9,2.84398]
[1745363718196,0.00852345,1761.1,1761.0,1.13535]
[1745363719595,0.00852345,1761.1,1761.0,4.34315]
[1745363719786,0.00852345,1761.1,1761.0,5.08303821]
[1745363719993,0.00852345,1761.1,1761.0,1.87523821]
[1745363720397,0.00852345,1761.1,1761.0,6.86793821]
[1745363720803,0.00852345,1761.1,1761.0,6.86791655]
[1745363721003,1.14381345,1761.1,1761.0,5.73256655]
[1745363721294,2.88511345,1761.1,1761.0,0.73986655]
[1745363721500,4.64751345,1761.1,1761.0,0.73986655]
[1745363721704,11.40171345,1761.1,1761.0,0.73986655]
[1745363722395,6.40171345,1761.1,1761.0,0.73986655]
[1745363722599,1.13539,1761.0,1760.8,2.92033]
[1745363722806,1.7732,1760.9,1760.8,2.92033]
[1745363722991,2.90861,1760.9,1760.8,0.74036313]
[1745363723400,2.90861,1760.9,1760.8,2.52356313]
[1745363723401,1.13541,1760.9,1760.8,2.52356313]
[1745363723604,1.13541,1760.9,1760.8,0.74036313]
[1745363725008,2.90857,1761.0,1760.8,1.87581313]
[1745363725200,2.90857,1761.0,1760.9,0.74036313]
[1745363726295,2.90857,1761.0,1760.9,1.87577313]
[1745363726296,1.7732,1761.0,1760.9,1.87577313]
[1745363726995,2.90855,1761.0,1760.9,0.74036313]
[1745363727197,6.11635,1761.0,1760.9,0.74036313]
[1745363727400,11.11635,1761.0,1760.9,0.74036313]
[1745363727600,7.90855,1761.0,1760.9,0.74036313]
[1745363728307,1.13548,1760.8,1760.7,0.00852345]